bitfinex-derivatives/quotes_SOLF0:USTF0_20220102
["timestamp","ask_amount","ask_price","bid_price","bid_amount"]
[1641127622659,12.07651449,176.32,176.29,0.6446603]
[1641127622860,11.46701442,176.34,176.29,0.6446603]
[1641127622861,4.01768018,176.3,176.29,0.6446603]
[1641127623559,4.01768018,176.3,176.27,0.6446603]
[1641127623962,4.01768018,176.3,176.27,4.64493033]
[1641127624461,4.01768018,176.3,176.28,0.6446603]
[1641127628168,4.01768018,176.3,176.27,0.6446603]
[1641127629168,4.01768018,176.3,176.27,28.3094503]
[1641127629771,4.01768018,176.3,176.28,0.6446603]
[1641127633474,4.01768018,176.29,176.28,0.6446603]
[1641127634075,4.01768018,176.29,176.26,0.6446603]
[1641127634576,2.3954475,176.3,176.26,0.6446603]
[1641127635679,4.01815431,176.28,176.26,0.6446603]
[1641127637181,14.47196199,176.3,176.26,4.64493033]
[1641127637783,14.47196199,176.3,176.27,0.6446603]
[1641127638883,3.0,176.28,176.25,4.00027003]
[1641127639083,3.0,176.28,176.21,12.07651449]
[1641127639483,27.66479,176.26,176.18,59.9365]
[1641127639884,27.66479,176.26,176.17,39.74130449]
[1641127640283,27.66479,176.26,176.17,12.07651449]
[1641127640483,27.66479,176.26,176.18,0.64475363]
[1641127640688,14.48377792,176.25,176.19,1.53719257]
[1641127641184,17.48377792,176.25,176.2,0.64475363]
[1641127641387,12.08833042,176.24,176.2,0.64475363]
[1641127641585,27.66479,176.22,176.2,0.64475363]
[1641127642186,2.3954475,176.21,176.2,0.64475363]
[1641127642586,2.3954475,176.21,176.16,0.64475363]
[1641127643688,2.3954475,176.21,176.17,1.53714303]
[1641127644087,2.3954475,176.21,176.18,0.64475363]
[1641127644490,12.08833042,176.23,176.18,0.64475363]
[1641127645389,11.72919236,176.24,176.18,0.64475363]
[1641127645390,12.08833042,176.22,176.18,0.64475363]
[1641127645788,12.08833042,176.22,176.16,0.64475363]
[1641127646189,58.2152,176.25,176.16,0.64475363]
[1641127650095,58.2152,176.25,176.15,28.30954363]
[1641127650296,58.2152,176.25,176.16,5.013]
[1641127650592,786.66479,176.26,176.16,5.013]
[1641127650794,786.66479,176.26,176.17,0.64475363]
[1641127651893,786.66479,176.26,176.19,27.66479]
[1641127652793,786.66479,176.26,176.2,0.64475363]
[1641127653493,759.0,176.26,176.2,0.64475363]
[1641127653694,14.58031484,176.25,176.2,2.18197043]
[1641127654294,14.58031484,176.25,176.21,0.64475363]
[1641127654693,2.49198442,176.25,176.21,2.18197043]
[1641127655094,2.49198442,176.25,176.22,0.64475363]
[1641127655894,2.49198442,176.25,176.19,27.66479]
[1641127655895,2.49198442,176.25,176.2,0.64475363]
[1641127656294,771.08833042,176.26,176.2,0.64475363]
[1641127657095,2.49182305,176.25,176.21,1.53723147]
[1641127657595,2.49182305,176.25,176.22,0.64475363]
[1641127657797,759.0,176.26,176.22,0.64475363]
[1641127658597,2.49201929,176.25,176.22,0.64475363]
[1641127658997,2.49201929,176.25,176.2,0.64475363]
[1641127659197,771.08716354,176.26,176.2,0.64475363]
[1641127660499,14.57924548,176.25,176.21,1.53720793]
[1641127661202,771.08736318,176.26,176.21,1.53720793]
[1641127661400,771.08736318,176.26,176.22,0.64475363]
[1641127662302,759.0,176.26,176.22,0.64475363]
[1641127662502,2.49190643,176.25,176.22,0.64475363]
[1641127663103,771.08737248,176.26,176.21,4.228]
[1641127663705,2.49189113,176.25,176.22,2.18197891]
[1641127664505,771.0873405,176.26,176.23,0.64475363]
[1641127665006,771.0873405,176.26,176.22,0.64475363]
[1641127665509,14.57940611,176.25,176.19,0.64475363]
[1641127666313,759.0,176.26,176.2,1.53720407]
[1641127666710,759.0,176.26,176.21,0.64475363]
[1641127667613,2.48517537,176.25,176.21,0.64475363]
[1641127667810,2.48517537,176.25,176.18,0.64475363]
[1641127668211,14.53946026,176.25,176.18,0.64475363]
[1641127668710,27.66479,176.24,176.18,0.64475363]
[1641127669011,786.66479,176.24,176.18,0.64475363]
[1641127669210,791.38979,176.24,176.18,0.64475363]
[1641127669611,2.48517537,176.23,176.18,0.64475363]
[1641127672316,786.66479,176.24,176.18,0.64475363]
[1641127673014,2.48555622,176.23,176.18,0.64475363]
[1641127673215,2.48555622,176.23,176.16,0.64475363]
[1641127673416,64.43985622,176.23,176.16,0.64475363]
[1641127674015,61.9543,176.23,176.16,0.64475363]
[1641127674718,27.66479,176.21,176.16,0.64475363]
[1641127676019,2.49291554,176.2,176.17,1.53713215]
[1641127676420,2.49291554,176.2,176.18,0.64475363]
[1641127677120,27.66479,176.21,176.18,0.64475363]
[1641127677720,2.49290943,176.2,176.18,0.64475363]
[1641127678019,2.49290943,176.2,176.16,0.64475363]
[1641127678320,27.66479,176.21,176.16,0.64475363]
[1641127679420,2.49285447,176.2,176.17,1.5371377]
[1641127679621,2.49285447,176.2,176.18,0.64475363]
[1641127680223,2.49251984,176.21,176.19,1.5371377]
[1641127680623,2.49251984,176.21,176.2,0.64475363]
[1641127680822,2.49251984,176.21,176.2,5.83475363]
[1641127681023,759.0,176.22,176.2,5.83475363]
[1641127681624,759.0,176.22,176.21,0.64475363]
[1641127682025,759.0,176.22,176.21,2.18189133]
[1641127682225,752.55331592,176.22,176.21,2.18189133]
[1641127682528,755.0454436,176.22,176.21,2.18189133]
[1641127682725,708.23235772,176.22,176.21,2.18189133]
[1641127682926,754.49212768,176.22,176.21,2.18189133]
[1641127683328,752.0,176.22,176.21,2.18189133]
[1641127684330,706.0,176.22,176.21,2.18189133]
[1641127685430,708.49205755,176.22,176.21,2.18189133]
[1641127686132,708.49205755,176.22,176.21,0.64475363]
[1641127686834,708.49205755,176.22,176.21,5.914]
[1641127687636,708.49205755,176.22,176.21,6.55875363]
[1641127688534,706.0,176.22,176.21,6.55875363]
[1641127688735,706.0,176.22,176.21,8.09598043]
[1641127688935,706.0,176.22,176.21,35.76077043]
[1641127689136,670.3303,176.22,176.21,35.76077043]
[1641127689334,666.4773,176.22,176.21,35.76077043]
[1641127689943,666.0,176.22,176.21,35.76077043]
[1641127693739,666.0,176.22,176.21,8.09598043]
[1641127694540,666.0,176.22,176.21,2.18198043]
[1641127697542,668.55017122,176.22,176.21,0.64475363]
[1641127698341,668.55017122,176.22,176.19,0.64475363]
[1641127698843,2.55017122,176.21,176.2,1.47923229]
[1641127699344,2.55017122,176.21,176.2,6.15340419]
[1641127703254,666.0,176.22,176.2,2.12398592]
[1641127703452,4.02932692,176.21,176.2,2.12398592]
[1641127704253,4.02932692,176.21,176.2,6.15335023]
[1641127704857,4.02932692,176.21,176.2,2.12398592]
[1641127705558,4.02932692,176.21,176.2,6.15334673]
[1641127706257,2.55016595,176.21,176.2,6.15334673]
[1641127706959,668.55016595,176.21,176.2,6.15334673]
[1641127709759,668.55016595,176.21,176.2,0.64475363]
[1641127711365,668.55016595,176.21,176.19,0.64475363]
[1641127712167,2.55016595,176.2,176.19,0.64475363]
[1641127712371,668.55016595,176.2,176.19,0.64475363]
[1641127713169,668.55016595,176.2,176.18,0.64475363]
[1641127713970,2.55016595,176.19,176.18,0.64475363]
[1641127714972,668.55016595,176.19,176.18,0.64475363]
[1641127716772,668.55016595,176.19,176.17,0.64475363]
[1641127717473,2.55016595,176.18,176.17,0.64475363]
[1641127722682,2.55016595,176.18,176.17,6.15326019]
[1641127723280,668.55016595,176.18,176.17,0.64475363]
[1641127723881,666.0,176.18,176.17,0.64475363]
[1641127724183,4.03002879,176.18,176.17,1.47917144]
[1641127724582,4.03002879,176.18,176.17,2.12392507]
[1641127724882,4.03002879,176.18,176.17,29.78871507]
[1641127725083,670.03002879,176.18,176.17,32.3395322]
[1641127725585,670.03002879,176.18,176.17,28.30954363]
[1641127725789,670.03002879,176.18,176.17,29.78871507]
[1641127726485,670.03002879,176.18,176.17,28.30954363]
[1641127726688,666.0,176.18,176.17,28.30954363]
[1641127726885,666.0,176.18,176.17,0.64475363]
[1641127727387,666.0,176.18,176.17,28.30954363]
[1641127727587,670.03002879,176.2,176.17,28.30954363]
[1641127728288,670.03002879,176.2,176.18,0.64475363]
[1641127730091,2.54424977,176.19,176.18,0.64475363]
[1641127730288,9.38124977,176.19,176.18,0.64475363]
[1641127731893,675.38124977,176.19,176.15,0.64475363]
[1641127732093,668.54424977,176.19,176.15,0.64475363]
[1641127732294,666.0,176.19,176.15,0.64475363]
[1641127732494,670.01941491,176.19,176.15,4.66401597]
[1641127733193,670.01941491,176.19,176.16,0.64475363]
[1641127734395,4.01941491,176.18,176.16,0.64475363]
[1641127734995,670.01941491,176.19,176.16,0.64475363]
[1641127735594,4.01941491,176.18,176.16,0.64475363]
[1641127736398,670.01941491,176.19,176.16,0.64475363]
[1641127737299,4.01941491,176.18,176.16,0.64475363]
[1641127737899,666.0,176.19,176.16,4.66401597]
[1641127738098,2.55116123,176.18,176.16,4.01926234]
[1641127738702,2.55116123,176.18,176.17,0.64475363]
[1641127739903,668.55116123,176.18,176.17,0.64475363]
[1641127742103,668.55116123,176.18,176.17,6.14317931]
[1641127742705,666.0,176.18,176.17,6.01475363]
[1641127742903,637.08753264,176.21,176.17,6.01475363]
[1641127743303,637.08753264,176.21,176.19,3.0]
[1641127743502,637.08753264,176.21,176.2,4.0294458]
[1641127743705,625.0,176.21,176.2,4.67419943]
[1641127744004,625.0,176.21,176.2,32.33898943]
[1641127744806,625.0,176.21,176.2,28.30954363]
[1641127745003,630.67198888,176.27,176.2,29.78883712]
[1641127745207,642.75841373,176.27,176.2,29.78883712]
[1641127745608,642.75841373,176.27,176.21,0.64475363]
[1641127746007,12.08642485,176.25,176.21,6.15317893]
[1641127746406,12.08642485,176.25,176.22,0.64475363]
[1641127747007,2.5499102,176.25,176.22,0.64475363]
[1641127747307,5.5499102,176.25,176.22,0.64475363]
[1641127747507,2.5499102,176.25,176.22,0.64475363]
[1641127747708,14.60796475,176.24,176.19,0.64475363]
[1641127747906,639.60796475,176.24,176.19,0.08167572]
[1641127748206,637.05805455,176.24,176.16,61.9268]
[1641127748608,704.20895455,176.24,176.16,61.9268]
[1641127748809,709.99695455,176.24,176.17,5.50024394]
[1641127749108,2.5499102,176.23,176.17,6.14505662]
[1641127749711,2.5499102,176.23,176.18,0.64481268]
[1641127750614,2.5499102,176.23,176.17,0.64481268]
[1641127750913,627.5499102,176.23,176.17,0.64481268]
[1641127752314,2.5499102,176.22,176.18,5.50026325]
[1641127752917,2.5499102,176.22,176.19,0.64481268]
[1641127754016,627.5499102,176.22,176.19,0.64481268]
[1641127754219,625.0,176.22,176.19,0.64481268]
[1641127754419,625.0,176.22,176.19,4.66450808]
[1641127755019,689.1509,176.24,176.19,4.66450808]
[1641127755219,2.54064733,176.21,176.2,0.64481268]
[1641127755619,2.54064733,176.21,176.19,0.64481268]
[1641127755822,6.501,176.22,176.19,0.64481268]
[1641127756421,6.501,176.22,176.18,0.64481268]
[1641127756821,2.54064733,176.21,176.18,0.64481268]
[1641127758426,6.594,176.21,176.18,0.64481268]
[1641127759027,631.594,176.21,176.18,0.64481268]
[1641127759327,2.54064733,176.2,176.18,0.64481268]
[1641127759727,8.86464733,176.2,176.18,0.64481268]
[1641127760437,633.86464733,176.2,176.18,0.64481268]
[1641127760832,2.54064733,176.19,176.18,0.64481268]
[1641127761034,627.54064733,176.19,176.12,39.74130449]
[1641127761232,3.0,176.16,176.12,39.74130449]
[1641127761435,7.847,176.16,176.12,39.74130449]
[1641127761631,4.847,176.16,176.12,12.07651449]
[1641127761835,629.847,176.16,176.12,12.07651449]
[1641127762231,629.847,176.16,176.13,1.44705595]
[1641127762435,27.66479,176.14,176.13,1.44705595]
[1641127763336,30.20543733,176.14,176.07,12.07651449]
[1641127763635,2.54064733,176.14,176.08,0.64502902]
[1641127764433,2.54064733,176.14,176.09,29.11184595]
[1641127764935,627.54064733,176.14,176.09,29.11184595]
[1641127765139,627.54064733,176.14,176.1,2.09208497]
[1641127765638,627.54064733,176.14,176.11,0.64502902]
[1641127765837,625.0,176.14,176.11,2.09208497]
[1641127766039,60.5944,176.16,176.11,2.09208497]
[1641127766241,60.5944,176.16,176.12,0.64502902]
[1641127766640,2.54541545,176.15,176.12,0.64502902]
[1641127766842,8.30241545,176.15,176.12,0.64502902]
[1641127767140,8.30241545,176.15,176.07,12.07651449]
[1641127767441,2.54541545,176.14,176.1,0.64502776]
[1641127767841,2.54541545,176.14,176.07,12.07651449]
[1641127768141,627.54541545,176.14,176.06,18.62090364]
[1641127768743,2.54541545,176.13,176.06,20.06789683]
[1641127769343,2.54541545,176.13,176.07,12.07651449]
[1641127769942,627.54541545,176.13,176.07,12.07651449]
[1641127770143,625.0,176.13,176.08,12.07651449]
[1641127772745,625.0,176.15,176.09,27.66479]
[1641127774945,60.5944,176.16,176.09,27.66479]
[1641127774946,685.5944,176.16,176.09,27.66479]
[1641127776451,685.5944,176.16,176.05,62.1889]
[1641127777050,685.5944,176.16,176.1,27.66479]
[1641127777451,685.5944,176.16,176.07,27.66479]
[1641127781251,713.25919,176.16,176.07,27.66479]
[1641127783253,14.64143526,176.15,176.08,1.44796142]
[1641127783954,20.73843526,176.15,176.08,1.44796142]
[1641127784554,2.58338071,176.14,176.08,1.44796142]
[1641127784954,627.58338071,176.14,176.08,1.44796142]
[1641127785756,2.58338071,176.13,176.08,1.44796142]
[1641127786558,2.58338071,176.13,176.08,20.07326338]
[1641127786956,627.58338071,176.13,176.08,20.07326338]
[1641127787156,627.58338071,176.13,176.08,1.44796142]
[1641127787957,2.58338071,176.12,176.08,1.44796142]
[1641127788958,627.58338071,176.12,176.08,1.44796142]
[1641127789659,2.58338071,176.11,176.08,1.44796142]
[1641127789859,7.91538071,176.11,176.08,1.44796142]
[1641127790460,7.91538071,176.11,176.06,1.44796142]
[1641127791160,2.58338071,176.1,176.06,1.44796142]
[1641127791360,627.58338071,176.1,176.06,1.44796142]
[1641127791763,2.58338071,176.09,176.06,1.44796142]
[1641127792764,625.0,176.1,176.04,27.66479]
[1641127793363,625.0,176.1,176.05,1.44204481]
[1641127793764,687.0785,176.12,176.05,1.44204481]
[1641127794767,684.0785,176.12,176.05,1.44204481]
[1641127795467,684.0785,176.12,176.05,7.18004481]
[1641127796368,684.0785,176.12,176.05,5.738]
[1641127797768,684.0785,176.12,176.06,1.44206564]
[1641127799271,625.0,176.12,176.06,1.44206564]
[1641127799970,630.67585209,176.15,176.07,27.66479]
[1641127800872,2.57335775,176.14,176.07,27.66479]
[1641127801971,627.57335775,176.14,176.07,27.66479]
[1641127802471,625.0,176.14,176.07,27.66479]
[1641127803072,59.8422,176.14,176.04,27.66479]
[1641127803974,3.0,176.12,176.04,27.66479]
[1641127804174,27.66479,176.13,176.04,27.66479]
[1641127804376,42.30685524,176.13,176.05,20.07343957]
[1641127805177,5.58401069,176.12,176.05,20.07343957]
[1641127805478,3.0,176.11,176.05,20.07343957]
[1641127805678,5.58401069,176.12,176.05,20.07343957]
[1641127806177,2.58401069,176.11,176.05,1.44790414]
[1641127806377,5.58401069,176.11,176.05,1.44790414]
[1641127806880,2.58401069,176.1,176.04,20.07350444]
[1641127807382,2.58401069,176.1,176.04,13.52441863]
[1641127807583,2.58401069,176.1,176.04,1.44790414]
[1641127808884,625.0,176.1,176.04,1.44790414]
[1641127809484,2.58429183,176.09,176.04,20.0735418]
[1641127810188,627.58429183,176.09,176.04,20.0735418]
[1641127810387,625.0,176.09,176.04,20.0735418]
[1641127811185,625.0,176.09,176.04,13.52441863]
[1641127811387,12.09651125,176.12,176.04,13.52441863]
[1641127811388,637.09651125,176.12,176.04,13.52441863]
[1641127811588,2.58434434,176.08,176.05,27.66479]
[1641127812290,2.58432761,176.11,176.06,1.44790414]
[1641127812889,625.0,176.12,176.05,27.66479]
[1641127813092,12.09672925,176.11,176.05,27.66479]
[1641127813690,2.58435605,176.11,176.06,1.44787275]
[1641127814190,12.09666954,176.11,176.05,27.66479]
[1641127814791,625.0,176.12,176.05,27.66479]
[1641127814991,2.5843329,176.11,176.06,1.44787485]
[1641127815697,625.0,176.12,176.05,27.66479]
[1641127816494,2.58428749,176.11,176.06,1.44787898]
[1641127817494,625.0,176.12,176.05,27.66479]
[1641127818198,712.50699,176.14,176.05,27.66479]
[1641127818396,2.58352962,176.11,176.06,1.44755514]
[1641127818896,12.09325429,176.13,176.05,39.74130449]
[1641127819195,14.67675706,176.13,176.05,39.74130449]
[1641127819795,712.50699,176.14,176.05,39.74130449]
[1641127819997,712.50699,176.14,176.06,1.44755791]
[1641127820201,715.50699,176.14,176.06,1.44755791]
[1641127820496,2.58351413,176.13,176.05,39.74130449]
[1641127820699,14.67672616,176.13,176.05,39.74130449]
[1641127821296,14.67672616,176.13,176.09,4.03107317]
[1641127821898,715.50699,176.14,176.08,4.03114934]
[1641127822600,715.50699,176.14,176.07,4.569]
[1641127822802,12.09610852,176.12,176.08,1.44789201]
[1641127823403,12.16321938,176.13,176.08,4.03196535]
[1641127824003,12.16321938,176.13,176.05,27.66479]
[1641127824301,12.09588044,176.12,176.05,27.66479]
[1641127824702,12.16321938,176.13,176.08,4.03202844]
[1641127825403,14.67994567,176.13,176.09,4.03193384]
[1641127826104,14.67994567,176.13,176.06,1.44790235]
[1641127827407,14.67994567,176.13,176.05,39.74130449]
[1641127827607,14.67994567,176.13,176.09,4.03191312]
[1641127828106,14.67994567,176.13,176.06,1.44790674]
[1641127828708,14.67994567,176.13,176.05,39.74130449]
[1641127828709,14.67994567,176.13,176.09,4.03189288]
[1641127829409,14.67994567,176.13,176.07,6.563]
[1641127829610,14.67994567,176.13,176.08,1.44790645]
[1641127830210,14.67994567,176.13,176.09,4.0318785]
[1641127830909,712.50699,176.14,176.08,1.44790707]
[1641127831411,14.67963939,176.13,176.09,4.03188659]
[1641127832118,620.96811341,176.09,176.08,1.44790669]
[1641127832813,623.58844706,176.09,176.07,6.563]
[1641127833314,620.96811341,176.09,176.08,1.41165469]
[1641127834020,620.96811341,176.09,176.05,39.74130449]
[1641127834619,620.96811341,176.09,176.06,1.41165503]
[1641127835921,620.96811341,176.09,176.05,39.74130449]
[1641127836822,620.96811341,176.09,176.06,1.43329409]
[1641127837023,614.51696659,176.09,176.06,1.43329409]
[1641127837322,614.51696659,176.09,176.05,27.66479]
[1641127838026,614.51696659,176.09,176.06,1.37530225]
[1641127839022,615.0,176.08,176.06,1.37530225]
[1641127844930,613.62469775,176.06,176.05,27.66479]
[1641127845130,613.62469775,176.06,176.05,39.74130449]
[1641127845932,613.62469775,176.06,176.05,46.12135891]
[1641127846533,613.62469775,176.06,176.05,27.66479]
[1641127847534,613.0,176.06,176.05,27.66479]
[1641127848840,613.0,176.06,176.05,46.00063625]
[1641127849435,613.0,176.06,176.05,33.92412176]
[1641127851439,613.0,176.06,176.05,46.0193995]
[1641127853942,674.7069,176.11,176.05,46.0193995]
[1641127855042,674.7069,176.11,176.05,27.66479]
[1641127856041,674.7069,176.11,176.03,73.05177774]
[1641127856042,585.33521,176.05,176.03,73.05177774]
[1641127856241,585.33521,176.05,176.03,12.09527774]
[1641127856441,585.33521,176.05,176.03,15.09527774]
[1641127856642,585.33521,176.05,176.03,12.09527774]
[1641127856842,585.33521,176.05,176.04,3.0]
[1641127859948,586.0,176.05,176.04,3.0]
[1641127860150,647.7069,176.11,176.04,3.0]
[1641127860354,647.7069,176.11,176.05,3.0]
[1641127860551,647.7069,176.11,176.06,27.66479]
[1641127860751,586.0,176.11,176.06,27.66479]
[1641127861452,586.0,176.11,176.05,15.07776669]
[1641127862153,586.0,176.06,176.05,15.07776669]
[1641127862353,586.0,176.06,176.05,12.07776669]
[1641127863153,586.0,176.06,176.04,9.21743998]
[1641127863154,586.0,176.06,176.04,21.29520667]
[1641127863556,586.0,176.06,176.04,24.52085459]
[1641127864756,586.0,176.06,176.04,18.30341461]
[1641127865257,586.0,176.05,176.04,18.30341461]
[1641127866259,586.0,176.05,176.04,15.07776669]
[1641127866856,586.0,176.05,176.04,30.66479]
[1641127867756,586.0,176.05,176.04,48.9778507]
[1641127869159,586.0,176.05,176.04,36.88222998]
[1641127869860,586.0,176.05,176.04,48.97774827]
[1641127870562,586.0,176.05,176.04,45.97774827]
[1641127870860,586.0,176.05,176.04,18.31295827]
[1641127872566,586.0,176.05,176.03,12.09551829]
[1641127874063,592.483,176.05,176.03,12.09551829]
[1641127875068,592.483,176.05,176.02,18.31295827]
[1641127875663,592.483,176.05,176.04,3.0]
[1641127875863,586.0,176.05,176.02,18.31295827]
[1641127876064,586.0,176.05,176.02,3.0]
[1641127876663,586.0,176.05,176.01,6.22564792]
[1641127876865,586.0,176.05,176.0,62.20914792]
[1641127877064,586.0,176.05,176.0,3.22564792]
[1641127877364,586.0,176.05,175.99,30.66479]
[1641127877565,586.0,176.0,175.99,30.66479]
[1641127878166,592.112,176.0,175.99,27.66479]
[1641127878365,592.112,176.0,175.97,76.64476621]
[1641127879065,592.112,176.0,175.97,73.41911829]
[1641127879266,592.112,176.0,175.97,12.09551829]
[1641127879569,592.112,176.0,175.95,3.0]
[1641127879766,592.112,176.0,175.96,3.0]
[1641127879966,592.112,176.0,175.95,3.0]
[1641127880467,592.112,176.0,175.96,3.0]
[1641127881870,586.0,176.0,175.96,3.0]
[1641127882375,586.0,176.0,175.99,3.0]
[1641127882571,583.0,175.96,175.95,60.4691]
[1641127882870,583.0,175.96,175.94,11.86642237]
[1641127883270,583.0,175.96,175.95,3.22683113]
[1641127885176,583.0,175.96,175.95,4.55362801]
[1641127885673,583.0,175.96,175.95,1.32679688]
[1641127886674,583.0,175.96,175.95,32.26773303]
[1641127887875,583.0,175.96,175.94,39.78493911]
[1641127888676,583.0,175.96,175.95,32.26773303]
[1641127889278,583.0,175.96,175.95,33.59452991]
[1641127890880,583.0,175.96,175.95,1.32679688]
[1641127895786,583.0,175.96,175.95,7.51720608]
[1641127896989,575.48279392,175.95,175.94,27.66479]
[1641127897386,569.0291159,175.95,175.94,27.66479]
[1641127899991,569.0291159,175.95,175.93,42.23827348]
[1641127900899,569.0291159,175.95,175.94,27.66479]
[1641127901998,541.33521,175.94,175.93,32.26773303]
[1641127902396,541.33521,175.94,175.93,42.23827348]
[1641127902898,541.33521,175.94,175.93,32.26773303]
[1641127903300,541.33521,175.94,175.93,35.49471404]
[1641127904001,541.0,175.94,175.93,35.49471404]
[1641127905898,541.0,175.94,175.93,3.22698101]
[1641127906599,541.0,175.94,175.93,35.49471404]
[1641127906898,541.0,175.94,175.93,32.26773303]
[1641127908699,508.73226697,175.93,175.92,9.97054045]
[1641127909100,508.73226697,175.93,175.91,5.67697985]
[1641127909801,508.73226697,175.93,175.9,13.19760247]
[1641127910399,508.73226697,175.93,175.92,27.66479]
[1641127911407,508.73226697,175.93,175.91,9.97054045]
[1641127911602,509.0,175.92,175.91,9.97054045]
[1641127911802,509.0,175.92,175.9,13.19760247]
[1641127912307,509.0,175.92,175.91,27.66479]
[1641127913709,509.0,175.92,175.91,37.63533045]
[1641127913911,509.0,175.92,175.91,40.86239247]
[1641127914610,509.0,175.92,175.91,13.19760247]
[1641127915010,509.0,175.92,175.91,40.86239247]
[1641127915211,509.0,175.92,175.91,30.89185202]
[1641127916512,509.0,175.92,175.91,27.66479]
[1641127917614,509.0,175.92,175.91,33.83411165]
[1641127923320,475.16588835,175.91,175.9,13.19760247]
[1641127924120,432.58246125,175.91,175.9,8.90436417]
[1641127924519,424.56246125,175.91,175.9,8.90436417]
[1641127924720,387.03026125,175.91,175.9,8.90436417]
[1641127924920,387.0,175.91,175.9,8.90436417]
[1641127925124,387.0,175.91,175.9,36.56915417]
[1641127925321,387.0,175.91,175.9,84.84897412]
[1641127925521,365.37515546,175.91,175.9,84.84897412]
[1641127925722,362.53515546,175.91,175.9,84.84897412]
[1641127926021,362.53515546,175.91,175.9,46.53969462]
[1641127929125,362.53515546,175.91,175.9,43.3126326]
[1641127929329,362.0,175.91,175.9,43.3126326]
[1641127930929,362.0,175.91,175.9,49.6656326]
[1641127931933,362.0,175.91,175.9,43.3126326]
[1641127932233,318.6873674,175.9,175.89,6.70654191]
[1641127933131,319.0,175.9,175.89,96.46726822]
[1641127933631,313.58,175.9,175.89,96.46726822]
[1641127933932,309.6,175.9,175.89,96.46726822]
[1641127934133,309.0,175.9,175.89,82.65115186]
[1641127934334,307.42,175.9,175.89,88.32732612]
[1641127934732,307.42,175.9,175.89,40.04750617]
[1641127935433,307.42,175.9,175.89,102.1437182]
[1641127935836,307.42,175.9,175.89,88.32732612]
[1641127936034,307.42,175.9,175.89,40.04750617]
[1641127937436,307.42,175.9,175.89,41.35060162]
[1641127937736,303.82,175.9,175.89,41.35060162]
[1641127937934,296.26,175.9,175.89,41.35060162]
[1641127938135,274.09372869,175.9,175.89,41.35060162]
[1641127938334,270.65372869,175.9,175.89,41.35060162]
[1641127938536,264.87372869,175.9,175.89,41.35060162]
[1641127939142,222.64939838,175.89,175.88,152.19547047]
[1641127939844,222.64939838,175.89,175.88,166.00596312]
[1641127941046,222.0,175.89,175.88,166.00596312]
[1641127941247,222.0,175.89,175.88,171.68245959]
[1641127943148,222.0,175.89,175.88,123.40263964]
[1641127943349,221.3,175.89,175.88,123.40263964]
[1641127943949,221.3,175.89,175.88,129.57295401]
[1641127944150,92.42704599,175.88,175.87,125.10479]
[1641127944349,92.42704599,175.88,175.87,97.44]
[1641127945150,92.42704599,175.88,175.87,145.73085375]
[1641127946156,92.0,175.88,175.87,145.73085375]
[1641127946351,92.0,175.88,175.87,151.40799474]
[1641127946751,92.0,175.88,175.87,103.11714099]
[1641127948253,92.0,175.88,175.87,113.05762516]
[1641127948452,86.68,175.88,175.87,113.05762516]
[1641127948955,87.0,175.88,175.87,113.05762516]
[1641127949152,87.0,175.88,175.87,161.34847891]
[1641127949353,77.42,175.88,175.87,161.34847891]
[1641127949857,77.42,175.88,175.87,113.05762516]
[1641127950856,57.25353,175.88,175.87,113.05762516]
[1641127952159,27.66479,175.96,175.87,56.05762516]
[1641127952563,27.66479,175.96,175.93,32.19361371]
[1641127953263,27.66479,175.96,175.94,32.19361371]
[1641127954663,27.66479,175.96,175.93,32.19361371]
[1641127955366,27.66479,175.96,175.95,32.19361371]
[1641127956566,60.7835,176.01,175.95,32.19361371]
[1641127957567,27.66479,175.96,175.94,32.19361371]
[1641127957770,21.21128511,175.96,175.94,32.19361371]
[1641127960673,60.7835,176.01,175.94,32.19361371]
[1641127961672,27.66479,175.95,175.94,32.19361371]
[1641127962272,27.66479,175.98,175.94,32.19361371]
[1641127965276,27.66479,175.98,175.93,37.84061371]
[1641127965576,27.66479,175.98,175.93,32.19361371]
[1641127965978,27.66479,175.98,175.95,32.19361371]
[1641127966377,60.7835,176.01,175.95,32.19361371]
[1641127967779,27.66479,175.99,175.95,32.19361371]
[1641127969682,27.66479,175.99,175.96,32.19361371]
[1641127973785,60.4356,176.01,175.96,32.19361371]
[1641127973984,60.4356,176.01,175.98,32.19361371]
[1641127974687,27.66479,176.02,175.98,32.19361371]